bitfinex/quotes_BTCUSD_20240712
["timestamp","ask_amount","ask_price","bid_price","bid_amount"]
[1720772540965,0.1,57286.0,57285.0,0.009108]
[1720772541311,0.12733009,57286.0,57285.0,0.009108]
[1720772541665,0.27651037,57286.0,57285.0,0.33237707]
[1720772541894,0.1,57286.0,57285.0,0.39567707]
[1720772542145,0.1,57287.0,57286.0,0.46056093]
[1720772542345,0.17651037,57293.0,57292.0,0.04976907]
[1720772542550,0.17651037,57300.0,57298.0,0.2735]
[1720772542751,0.01826366,57305.0,57297.0,0.1439]
[1720772542752,0.17651037,57301.0,57299.0,0.2725]
[1720772542961,0.17651037,57302.0,57301.0,0.1545]
[1720772543172,0.17651037,57303.0,57302.0,0.2135]
[1720772543372,0.17645692,57304.0,57303.0,0.1535]
[1720772543671,0.17645692,57305.0,57303.0,0.1535]
[1720772543948,0.17645692,57304.0,57303.0,0.1455]
[1720772544634,0.1,57304.0,57302.0,0.0806]
[1720772544841,0.1,57303.0,57302.0,0.0806]
[1720772545480,0.17645423,57304.0,57303.0,0.45326093]
[1720772545654,0.17645423,57309.0,57308.0,0.31226907]
[1720772545861,0.00306353,57311.0,57310.0,0.1455]
[1720772546286,0.20081727,57312.0,57310.0,0.1435]
[1720772546487,0.17645423,57311.0,57310.0,0.1435]
[1720772547095,0.28145423,57311.0,57310.0,0.2605]
[1720772547315,0.28145423,57311.0,57310.0,0.45126907]
[1720772547316,0.005,57311.0,57310.0,0.45126907]
[1720772547507,0.005,57311.0,57310.0,0.44826907]
[1720772548147,0.16178524,57311.0,57310.0,0.44826907]
[1720772548347,0.02436304,57312.0,57311.0,0.2575]
[1720772548574,0.27640525,57315.0,57313.0,0.1405]
[1720772548774,0.1,57315.0,57314.0,0.1405]
[1720772548973,0.1,57315.0,57313.0,0.1405]
[1720772549381,0.1,57315.0,57313.0,0.1345]
[1720772549578,0.1,57315.0,57312.0,0.117]
[1720772549579,0.30404578,57315.0,57312.0,0.1345]
[1720772549831,0.12764053,57315.0,57313.0,0.1345]
[1720772550031,0.105,57315.0,57314.0,0.30126907]
[1720772550205,0.28140525,57315.0,57314.0,0.30126907]
[1720772550685,0.28640525,57315.0,57314.0,0.30126907]
[1720772551088,0.11,57315.0,57314.0,0.30126907]
[1720772551520,0.113,57315.0,57313.0,0.1345]
[1720772551720,0.2793409,57315.0,57314.0,0.1345]
[1720772551923,0.1,57315.0,57314.0,0.1345]
[1720772552123,0.1,57315.0,57313.0,0.1345]
[1720772552366,0.103,57315.0,57313.0,0.1345]
[1720772552531,0.02763409,57314.0,57313.0,0.1345]
[1720772552726,0.2793409,57315.0,57313.0,0.1345]
[1720772553044,0.1,57315.0,57314.0,0.1345]
[1720772553231,0.107,57315.0,57312.0,0.18426907]
[1720772553432,0.31097499,57315.0,57313.0,0.1345]
[1720772553637,0.440785,57314.0,57310.0,0.32526907]
[1720772553860,0.00306353,57313.0,57310.0,0.32526907]
[1720772554060,0.66273643,57313.0,57310.0,0.32526907]
[1720772554235,0.06697364,57312.0,57310.0,0.32526907]
[1720772554436,0.2763409,57313.0,57310.0,0.32526907]
[1720772555062,0.102,57313.0,57308.0,0.04976907]
[1720772555265,0.57169827,57312.0,57308.0,0.04976907]
[1720772555516,0.1,57311.0,57309.0,0.20849186]
[1720772555719,0.1,57311.0,57309.0,0.07399186]
[1720772556132,0.1,57311.0,57309.0,0.20849186]
[1720772556334,0.1,57311.0,57309.0,0.07399186]
[1720772556677,0.1,57312.0,57309.0,0.07399186]
[1720772556882,0.338584,57311.0,57309.0,0.07399186]
[1720772557082,0.1,57310.0,57309.0,0.07399186]
[1720772558094,0.1,57311.0,57309.0,0.07499186]
[1720772558302,0.27639323,57312.0,57308.0,0.04976907]
[1720772558523,0.58171923,57312.0,57309.0,0.07599186]
[1720772558725,0.265326,57311.0,57309.0,0.07690486]
[1720772558877,0.3317837,57311.0,57309.0,0.07690486]
[1720772559077,0.1,57310.0,57309.0,0.07490486]
[1720772559690,0.1,57310.0,57309.0,0.07690486]
[1720772560111,0.1664577,57311.0,57309.0,0.07690486]
[1720772560291,0.1,57311.0,57309.0,0.08090486]
[1720772560491,0.1,57311.0,57310.0,0.1345]
[1720772560694,0.1,57311.0,57310.0,0.44476907]
[1720772560912,0.1,57312.0,57311.0,0.2515]
[1720772561285,0.1,57312.0,57310.0,0.32776907]
[1720772561487,0.3009,57313.0,57310.0,0.32776907]
[1720772561715,0.1,57313.0,57310.0,0.32776907]
[1720772561893,0.2764322,57313.0,57311.0,0.1345]
[1720772562769,0.1,57313.0,57312.0,0.30126907]
[1720772563756,0.102,57313.0,57312.0,0.30126907]
[1720772564127,0.1,57313.0,57312.0,0.30126907]
[1720772564354,0.102,57313.0,57312.0,0.30126907]
[1720772565702,0.002,57313.0,57312.0,0.30126907]
[1720772565914,0.102,57313.0,57312.0,0.30126907]
[1720772569710,0.002,57313.0,57312.0,0.30126907]
[1720772570116,0.002,57313.0,57312.0,0.04976907]
[1720772570338,0.04069061,57313.0,57312.0,0.18426907]
[1720772570571,0.002,57313.0,57312.0,0.30126907]
[1720772572063,0.002,57313.0,57312.0,0.18426907]
[1720772572470,0.002,57313.0,57312.0,0.30126907]
[1720772572675,0.002,57313.0,57311.0,0.1345]
[1720772572873,0.03563859,57313.0,57310.0,0.18426907]
[1720772573073,0.13563859,57313.0,57310.0,0.04976907]
[1720772573281,0.13257506,57313.0,57310.0,0.04976907]
[1720772573676,0.13057506,57313.0,57310.0,0.18426907]
[1720772573907,0.1,57313.0,57312.0,0.1345]
[1720772574117,0.1,57313.0,57311.0,0.1345]
[1720772574307,0.00306353,57313.0,57311.0,0.1345]
[1720772574711,0.00506353,57313.0,57311.0,0.1345]
[1720772574931,0.00306353,57313.0,57311.0,0.1345]
[1720772575088,0.03343859,57313.0,57310.0,0.18426907]
[1720772575609,0.03343859,57313.0,57311.0,0.1345]
[1720772575610,0.03037506,57313.0,57311.0,0.1345]
[1720772575815,0.03343859,57313.0,57311.0,0.1345]
[1720772576380,0.03543859,57313.0,57311.0,0.1345]
[1720772576579,0.03343859,57313.0,57311.0,0.1345]
[1720772576780,0.03343859,57313.0,57312.0,0.1345]
[1720772576986,0.00506353,57313.0,57312.0,0.2515]
[1720772577400,0.002,57313.0,57312.0,0.2515]
[1720772577804,0.12432018,57315.0,57314.0,0.2515]
[1720772578016,0.12432018,57315.0,57311.0,0.1345]
[1720772578204,0.002,57313.0,57311.0,0.1345]
[1720772578471,0.002,57313.0,57311.0,0.1305]
[1720772578627,0.002,57313.0,57312.0,0.2475]
[1720772579249,0.002,57313.0,57311.0,0.1305]
[1720772579574,0.00306353,57314.0,57311.0,0.1305]
[1720772580090,0.00306353,57314.0,57312.0,0.1305]
[1720772580225,0.00306353,57314.0,57313.0,0.1305]
[1720772580419,0.30068243,57315.0,57314.0,0.1285]
[1720772580653,0.12432018,57315.0,57314.0,0.1285]
[1720772581212,0.12432018,57315.0,57314.0,0.1255]
[1720772581833,0.12432018,57315.0,57314.0,0.2425]
[1720772582447,0.12732018,57315.0,57314.0,0.2425]
[1720772582847,0.13132018,57315.0,57314.0,0.2425]
[1720772583529,0.30767566,57315.0,57314.0,0.2425]
[1720772584069,0.13132018,57315.0,57314.0,0.24116907]
[1720772584273,0.16208775,57315.0,57311.0,0.0659]
[1720772584470,0.00306353,57314.0,57310.0,0.17526907]
[1720772584771,0.03721421,57314.0,57310.0,0.17526907]
[1720772584989,0.03415068,57314.0,57310.0,0.17526907]
[1720772585195,0.02078571,57315.0,57310.0,0.17526907]
[1720772585395,0.24329,57314.0,57310.0,0.17526907]
[1720772585815,0.24329,57314.0,57311.0,0.1255]
[1720772586251,0.00606353,57315.0,57310.0,0.1255]
[1720772586428,0.471539,57314.0,57310.0,0.1255]
[1720772587005,0.003,57314.0,57310.0,0.1255]
[1720772587423,0.001,57314.0,57310.0,0.1255]
[1720772587627,0.002,57314.0,57310.0,0.17526907]
[1720772587835,0.004,57314.0,57310.0,0.17526907]
[1720772588069,0.004,57314.0,57310.0,0.04976907]
[1720772588681,0.001,57311.0,57309.0,0.000913]
[1720772588881,0.32803,57310.0,57309.0,0.00030448]
[1720772589056,0.50322718,57310.0,57309.0,0.00030448]
[1720772589437,0.42703,57310.0,57309.0,0.00030448]
[1720772589719,0.1,57310.0,57309.0,0.00030448]
[1720772589896,0.1,57310.0,57309.0,0.00080448]
[1720772590068,0.10306353,57313.0,57309.0,0.00080448]
[1720772590272,0.001,57305.0,57297.0,0.0611]
[1720772590480,0.001,57305.0,57293.0,0.025]
[1720772590481,0.001,57297.0,57293.0,0.025]
[1720772590680,0.546712,57296.0,57293.0,0.025]
[1720772590853,0.546712,57296.0,57290.0,0.0611]
[1720772590854,0.00406353,57294.0,57290.0,0.0611]
[1720772591051,0.00306353,57294.0,57290.0,0.0611]
[1720772591258,0.0539095,57294.0,57290.0,0.0611]
[1720772591455,0.00306353,57294.0,57287.0,0.1255]
[1720772591685,0.560491,57293.0,57287.0,0.07399186]
[1720772592036,0.1,57292.0,57289.0,0.1255]
[1720772592165,0.01451717,57291.0,57289.0,0.1255]
[1720772592386,0.1,57292.0,57291.0,0.50746093]
[1720772592552,0.11451595,57292.0,57291.0,0.50746093]
[1720772593007,0.11451595,57292.0,57291.0,0.56746093]
[1720772593333,0.01451595,57292.0,57291.0,0.56746093]
[1720772593525,0.01451595,57292.0,57291.0,1.09110193]
[1720772593728,0.01451595,57292.0,57291.0,0.86162448]
[1720772594145,0.01451595,57292.0,57291.0,0.86862448]
[1720772594146,0.01551595,57292.0,57291.0,0.86862448]
[1720772594283,0.01551595,57292.0,57291.0,0.86162448]
[1720772594491,0.01451595,57292.0,57291.0,1.55981248]
[1720772594688,0.01551595,57292.0,57291.0,1.77381248]
[1720772594918,0.01551595,57292.0,57291.0,1.57381248]
[1720772595110,0.0165127,57292.0,57291.0,1.57981248]
[1720772595318,0.0165127,57292.0,57291.0,0.44676093]
[1720772595494,0.01651444,57292.0,57291.0,0.44676093]
[1720772596083,0.01651444,57292.0,57291.0,0.33649186]
[1720772596301,0.01651444,57292.0,57291.0,0.014]
[1720772596302,0.01551444,57292.0,57291.0,0.014]
[1720772596501,0.14373823,57292.0,57291.0,0.006]
[1720772596702,0.14473823,57292.0,57291.0,0.02]
[1720772596903,0.29220045,57292.0,57291.0,0.02]
[1720772597105,0.29220045,57292.0,57290.0,0.1255]
[1720772597106,0.29120045,57292.0,57290.0,0.1255]
[1720772597366,0.01451444,57291.0,57290.0,0.1255]
[1720772597606,0.04363449,57291.0,57289.0,0.1255]
[1720772597804,0.01451444,57290.0,57289.0,0.1255]
[1720772598045,0.29120045,57290.0,57289.0,0.1255]
[1720772598233,0.1,57290.0,57289.0,0.1255]
[1720772598436,0.11451702,57290.0,57289.0,0.31649186]
[1720772598616,0.11451702,57290.0,57289.0,0.19949186]
[1720772598916,0.11451702,57290.0,57289.0,0.31649186]
[1720772599258,0.01451702,57290.0,57289.0,0.31649186]
[1720772599459,0.01451702,57290.0,57289.0,0.19949186]
[1720772599704,0.01451702,57290.0,57288.0,0.117]
[1720772599705,0.04363278,57290.0,57287.0,0.08511435]
[1720772599908,0.1,57292.0,57288.0,0.31649186]
[1720772599909,0.01451702,57289.0,57288.0,0.31649186]
[1720772600500,0.01451702,57289.0,57288.0,0.07399186]
[1720772600700,0.01451702,57289.0,57288.0,0.2425]
[1720772600902,0.01451702,57289.0,57288.0,0.31649186]
[1720772601109,0.01551702,57289.0,57288.0,0.32349186]
[1720772601315,0.01551702,57289.0,57288.0,0.2495]
[1720772601715,0.01651637,57289.0,57288.0,0.37626093]
[1720772601893,0.00586237,57295.0,57294.0,0.2425]
[1720772602505,0.98971911,57302.0,57294.0,0.2425]
[1720772602711,0.416056,57298.0,57294.0,0.00306353]
[1720772603107,0.416056,57298.0,57293.0,0.08511435]
[1720772603344,0.416056,57298.0,57294.0,0.001]
[1720772603698,0.416056,57298.0,57293.0,0.08511435]
[1720772603899,0.1,57297.0,57291.0,0.1255]
[1720772604096,0.507121,57296.0,57289.0,0.17526907]
[1720772604295,0.507121,57296.0,57285.0,0.134608]
[1720772604296,0.2035,57294.0,57285.0,0.134608]
[1720772604497,0.1,57293.0,57285.0,0.134608]
[1720772604803,0.646515,57293.0,57285.0,0.134608]
[1720772605011,0.646515,57293.0,57285.0,0.009108]
[1720772605012,0.7921165,57292.0,57285.0,0.009108]
[1720772605212,0.649015,57291.0,57285.0,0.009108]
[1720772605390,0.432135,57290.0,57285.0,0.009108]
[1720772605742,0.509135,57289.0,57285.0,0.009108]
[1720772606108,0.340935,57288.0,57285.0,0.009108]
[1720772606317,0.0572,57286.0,57285.0,0.009108]
[1720772606490,0.0572,57286.0,57285.0,0.0654]
[1720772606491,0.04913396,57286.0,57285.0,0.0654]
[1720772606671,0.04913396,57286.0,57285.0,0.3119]
[1720772606874,0.10129008,57287.0,57285.0,0.1949]
[1720772607169,0.10129008,57287.0,57285.0,0.1255]
[1720772607384,0.00129008,57287.0,57285.0,0.1415]
[1720772607771,0.00129008,57287.0,57286.0,0.1255]
[1720772608192,0.23226214,57287.0,57285.0,0.013]
[1720772608389,0.23226214,57287.0,57280.0,0.04976907]
[1720772608390,0.001,57283.0,57280.0,0.04976907]
[1720772608555,0.596356,57282.0,57280.0,0.04976907]
[1720772608814,0.05180063,57282.0,57280.0,0.04976907]
[1720772609015,0.592821,57281.0,57280.0,0.04976907]
[1720772609350,0.001,57278.0,57277.0,0.009108]
[1720772609603,1.1412758,57278.0,57277.0,0.009108]
[1720772609798,1.43965689,57278.0,57277.0,0.009108]
[1720772610036,1.17235589,57278.0,57277.0,0.009108]
[1720772610200,0.61397689,57278.0,57277.0,0.009108]
[1720772610406,0.54222289,57278.0,57277.0,0.009108]
[1720772611025,0.54922289,57278.0,57277.0,0.010108]
[1720772611267,0.55322289,57278.0,57277.0,0.010108]
[1720772611400,0.49602289,57278.0,57277.0,0.05987707]
[1720772611605,0.49602289,57278.0,57277.0,0.010108]
[1720772611606,0.12552226,57278.0,57277.0,0.010108]
[1720772611825,0.02552147,57278.0,57277.0,0.010108]
[1720772612028,0.01852147,57278.0,57277.0,0.009108]
[1720772612612,0.44974493,57278.0,57277.0,0.009108]
[1720772612806,0.51224493,57278.0,57277.0,0.009108]
[1720772613091,0.11752147,57278.0,57277.0,0.009108]
[1720772613486,0.12152147,57278.0,57277.0,0.009108]
[1720772613751,0.70905347,57278.0,57277.0,0.009108]
[1720772613996,0.66766847,57278.0,57277.0,0.009108]
[1720772614169,0.67066847,57278.0,57277.0,0.009108]
[1720772614369,0.77023613,57278.0,57277.0,0.009108]
[1720772614591,0.67148013,57278.0,57277.0,0.009108]
[1720772614748,0.45398913,57278.0,57277.0,0.009108]
[1720772615111,0.45498913,57278.0,57277.0,0.009108]
[1720772615364,0.45498925,57278.0,57277.0,0.009108]
[1720772615710,0.45498927,57278.0,57277.0,0.009108]
[1720772616121,0.001,57273.0,57272.0,0.009097]
[1720772616317,0.01452161,57273.0,57272.0,0.009097]
[1720772616519,0.47638072,57274.0,57272.0,0.009097]
[1720772616696,0.45648561,57273.0,57272.0,0.009097]
[1720772616903,0.35648561,57273.0,57272.0,0.009097]
[1720772617120,0.45648561,57273.0,57272.0,0.009097]
[1720772617323,0.45648561,57273.0,57272.0,0.013097]
[1720772617525,0.45748561,57273.0,57272.0,0.009097]
[1720772617735,0.11552161,57273.0,57272.0,0.009097]
[1720772618148,0.01452166,57273.0,57272.0,0.013097]
[1720772619080,0.01452166,57273.0,57272.0,0.009097]
[1720772619457,0.01752166,57273.0,57272.0,0.009097]
[1720772620038,0.91587493,57273.0,57272.0,0.009097]
[1720772620246,0.91687493,57273.0,57272.0,0.009097]
[1720772620874,0.92087493,57273.0,57272.0,0.009097]
[1720772621553,0.92487493,57273.0,57272.0,0.009097]
[1720772621956,0.91035327,57273.0,57272.0,1e-08]
[1720772622171,0.21307399,57273.0,57272.0,1e-08]
[1720772622344,0.12352172,57273.0,57272.0,1e-08]
[1720772622549,0.12252172,57273.0,57272.0,1e-08]
[1720772622771,0.12252172,57273.0,57272.0,0.18590001]
[1720772623090,0.12252172,57273.0,57272.0,0.38801436]
[1720772623690,0.02252172,57273.0,57272.0,0.38801436]
[1720772623902,0.01452172,57273.0,57272.0,0.38801436]
[1720772624564,0.02273213,57278.0,57272.0,0.38801436]
[1720772624770,0.1,57281.0,57276.0,0.1245]
[1720772624972,0.01452153,57277.0,57275.0,0.1245]
[1720772625230,0.01452153,57277.0,57276.0,0.2415]
[1720772625414,0.01452153,57277.0,57275.0,0.1245]
[1720772625801,0.01452153,57277.0,57274.0,0.04976907]
[1720772626306,0.12309573,57281.0,57274.0,0.04976907]
[1720772626307,0.02309573,57281.0,57280.0,0.36526093]
[1720772626516,0.02309573,57281.0,57280.0,0.50556093]
[1720772626718,0.01826366,57290.0,57286.0,0.1245]
[1720772626925,0.01826366,57290.0,57286.0,0.1225]
[1720772627107,0.01826366,57290.0,57283.0,0.16426907]
[1720772627483,0.01826366,57290.0,57283.0,0.16326907]
[1720772627916,0.01826366,57290.0,57284.0,0.1225]
[1720772628260,0.01451797,57289.0,57284.0,0.1225]
[1720772628466,0.01451797,57289.0,57284.0,0.20661435]
[1720772628693,0.01826366,57290.0,57284.0,0.20661435]
[1720772628870,0.01826366,57290.0,57284.0,0.08511435]
[1720772628871,0.01451797,57289.0,57284.0,0.08511435]
[1720772629180,0.01451801,57288.0,57287.0,0.2385]
[1720772629738,0.01451801,57288.0,57287.0,0.1215]
[1720772630335,0.01451801,57288.0,57284.0,0.20661435]
[1720772630541,0.01451801,57287.0,57284.0,0.08511435]
[1720772630750,0.01451801,57286.0,57284.0,0.08511435]
[1720772630948,0.01826366,57290.0,57285.0,0.1215]
[1720772631147,0.24026206,57289.0,57286.0,0.1215]
[1720772631355,0.11451806,57288.0,57286.0,0.1215]
[1720772631578,0.1,57287.0,57286.0,0.1215]
[1720772631847,0.01451806,57287.0,57286.0,0.1215]
[1720772632392,0.01451806,57287.0,57285.0,0.1215]
[1720772632567,0.04049084,57290.0,57286.0,0.1215]
[1720772632767,0.21590114,57289.0,57286.0,0.1215]
[1720772632996,0.11451806,57288.0,57286.0,0.1215]
[1720772633202,0.01451806,57287.0,57286.0,0.1215]
[1720772634076,0.01451806,57287.0,57286.0,0.1255]
[1720772634262,0.01451806,57287.0,57286.0,0.1285]
[1720772634481,0.01451806,57287.0,57286.0,0.004]
[1720772634707,0.01451806,57287.0,57284.0,0.08511435]
[1720772634911,0.01451806,57286.0,57284.0,0.08511435]
[1720772635082,0.01451806,57285.0,57284.0,0.08511435]
[1720772636750,0.01451806,57285.0,57284.0,0.32361435]
[1720772636865,0.01551806,57285.0,57284.0,0.32861435]
[1720772637271,0.01551806,57285.0,57284.0,0.33461435]
[1720772637472,0.01551806,57285.0,57284.0,0.32861435]
[1720772637871,0.01551806,57285.0,57284.0,0.33861435]
[1720772638286,0.01551806,57285.0,57284.0,0.37938342]
[1720772638486,0.01551806,57285.0,57284.0,0.44128342]
[1720772638736,0.01551806,57285.0,57284.0,0.52178342]
[1720772639320,0.04395115,57290.0,57289.0,0.1215]
[1720772639638,0.04395115,57290.0,57287.0,0.1205]
[1720772639639,0.05846884,57290.0,57287.0,0.1205]
[1720772639814,0.01451763,57289.0,57288.0,0.1205]
[1720772640014,0.01451763,57289.0,57288.0,0.2375]
[1720772641012,0.01451763,57289.0,57285.0,0.04076907]
[1720772641013,0.75228363,57289.0,57285.0,0.04076907]
[1720772641244,0.04395115,57290.0,57288.0,0.1285]
[1720772641482,0.01451847,57289.0,57288.0,0.008]
[1720772641955,0.01451817,57289.0,57288.0,0.2455]
[1720772642177,0.01451817,57289.0,57288.0,0.008]
[1720772642638,0.43972417,57289.0,57288.0,0.013]
[1720772642875,0.50100217,57289.0,57288.0,0.005]
[1720772643079,0.50100217,57289.0,57282.0,0.07399186]
[1720772643080,0.001,57286.0,57282.0,0.07399186]
[1720772643317,0.75567617,57285.0,57282.0,0.07399186]
[1720772643519,0.66241617,57284.0,57282.0,0.07399186]
[1720772643721,0.01451817,57283.0,57282.0,0.19449186]
[1720772643895,0.01451817,57283.0,57282.0,0.07399186]
[1720772644299,0.83931717,57283.0,57282.0,0.07399186]
[1720772644505,0.81931717,57283.0,57282.0,0.07399186]
[1720772644708,0.81931717,57283.0,57282.0,0.07899186]
[1720772644855,0.81931717,57283.0,57282.0,0.08099186]
[1720772645041,0.642328,57283.0,57282.0,0.07599186]
[1720772645243,0.60545697,57283.0,57282.0,0.07599186]
[1720772645868,0.52052197,57283.0,57282.0,0.002]
[1720772646068,0.59021745,57283.0,57282.0,0.002]
[1720772646274,0.001,57282.0,57279.0,0.07399186]
[1720772646485,0.01551897,57281.0,57276.0,0.0649]
[1720772646724,0.43643697,57280.0,57276.0,0.0649]
[1720772646933,0.11451897,57279.0,57276.0,0.0649]
[1720772647135,0.01451897,57278.0,57276.0,0.0649]
[1720772647341,0.354354,57277.0,57276.0,0.0649]
[1720772647596,0.46887297,57277.0,57276.0,0.0649]
[1720772647769,0.46887297,57277.0,57276.0,0.0729]
[1720772647996,0.46887297,57277.0,57276.0,0.0649]
[1720772648200,0.46887297,57277.0,57276.0,0.0729]
[1720772648403,0.37474597,57277.0,57276.0,0.0729]
[1720772648603,0.11452047,57277.0,57276.0,0.26739186]
[1720772648809,0.01452047,57277.0,57276.0,0.0729]
[1720772649013,0.11452047,57277.0,57276.0,0.0729]
[1720772649185,0.01452047,57277.0,57276.0,0.0729]
[1720772649601,0.11452047,57277.0,57276.0,0.0649]
[1720772649804,0.11452047,57277.0,57276.0,0.0769]
[1720772650120,0.11552047,57277.0,57276.0,0.0769]
[1720772650324,0.14493325,57277.0,57276.0,0.0769]
[1720772650760,0.01652047,57277.0,57276.0,0.15089186]
[1720772651367,0.01652047,57277.0,57276.0,0.27139186]
[1720772652146,0.01651982,57277.0,57276.0,0.27139186]
[1720772652600,0.01651967,57277.0,57276.0,0.27139186]
[1720772652809,0.01651967,57277.0,57276.0,0.33039186]
[1720772653096,0.0172733,57277.0,57276.0,0.33039186]
[1720772654140,0.01651967,57277.0,57276.0,0.38839186]
[1720772654317,0.01651967,57277.0,57276.0,0.50506093]
[1720772654525,0.0172733,57277.0,57276.0,0.34729186]
[1720772654768,0.0172733,57277.0,57276.0,0.22679186]
[1720772655145,0.01727317,57277.0,57276.0,0.34820486]
[1720772655379,0.01727317,57277.0,57276.0,0.22770486]
[1720772655585,0.01727321,57277.0,57276.0,0.153713]
[1720772655784,0.01651958,57277.0,57276.0,0.22770486]
[1720772655995,0.04169558,57277.0,57276.0,0.153713]
[1720772656178,0.01651958,57277.0,57276.0,0.153713]
[1720772656323,0.32250167,57277.0,57276.0,0.153713]
[1720772656526,0.69117891,57277.0,57276.0,0.153713]
[1720772656754,0.94316967,57277.0,57276.0,0.153713]
[1720772656962,0.65573591,57277.0,57276.0,0.153713]
[1720772657158,0.24963791,57277.0,57276.0,0.153713]
[1720772657315,0.42708177,57277.0,57276.0,0.153713]
[1720772657520,0.39776344,57277.0,57276.0,0.15364334]
[1720772657752,0.29396344,57277.0,57276.0,0.2276352]
[1720772657947,0.29396344,57277.0,57276.0,0.3481352]
[1720772657948,0.11727321,57277.0,57276.0,0.3481352]
[1720772658171,0.11727321,57277.0,57276.0,0.4651352]
[1720772658379,0.11651958,57277.0,57276.0,0.4651352]
[1720772658785,0.11651984,57277.0,57276.0,0.4651352]
[1720772658994,0.11651984,57277.0,57276.0,0.3481352]
[1720772659232,0.11651984,57277.0,57276.0,0.50590427]
[1720772659741,0.01651984,57277.0,57276.0,0.56590427]
[1720772659868,0.01651984,57277.0,57276.0,0.50590427]
[1720772660390,0.01651984,57277.0,57276.0,0.56590427]
[1720772660711,0.01451984,57277.0,57276.0,0.55390427]
[1720772660911,0.01551984,57277.0,57276.0,0.55390427]
[1720772661115,0.01651984,57277.0,57276.0,0.56790427]
[1720772661325,0.01651984,57277.0,57276.0,0.49390427]
[1720772662214,0.01651863,57277.0,57276.0,0.37690427]
[1720772662414,0.01551863,57277.0,57276.0,0.3361352]
[1720772662625,0.01551918,57277.0,57276.0,0.4531352]
[1720772662839,0.01651918,57277.0,57276.0,0.4751352]
[1720772663081,0.01551918,57277.0,57276.0,0.4641352]
[1720772663280,0.01451918,57277.0,57276.0,0.4531352]
[1720772663490,0.01451918,57277.0,57276.0,0.4811352]
[1720772663665,0.01451918,57277.0,57276.0,0.4671352]
[1720772663866,0.01451918,57277.0,57276.0,0.4531352]
[1720772664068,0.01451918,57277.0,57276.0,0.4631352]
[1720772664275,0.01451918,57277.0,57276.0,0.4731352]
[1720772664835,0.01451918,57277.0,57276.0,0.2802352]
[1720772665056,0.01451918,57277.0,57276.0,0.020913]
[1720772665057,0.73033038,57277.0,57276.0,0.020913]
[1720772665260,0.68311741,57277.0,57276.0,0.020913]
[1720772665657,0.54915586,57277.0,57276.0,0.010913]
[1720772665850,0.34553286,57277.0,57276.0,0.010913]
[1720772666041,0.11552063,57277.0,57276.0,0.020913]
[1720772666483,0.01552063,57277.0,57276.0,0.010913]
[1720772666682,0.60618249,57277.0,57276.0,0.010913]
[1720772666887,0.57232863,57277.0,57276.0,0.021913]
[1720772667013,0.57332863,57277.0,57276.0,0.021913]
[1720772667230,0.57232863,57277.0,57276.0,0.021913]
[1720772667638,0.11552063,57277.0,57276.0,0.021913]
[1720772667837,0.11932063,57277.0,57276.0,0.021913]
[1720772668020,0.21932063,57277.0,57276.0,0.021913]
[1720772668868,0.21932096,57277.0,57276.0,0.021913]
[1720772669304,0.34897296,57277.0,57276.0,0.021913]
[1720772669473,0.38897296,57277.0,57276.0,0.021913]
[1720772669875,0.41828819,57277.0,57276.0,0.021913]
[1720772670102,0.41297296,57277.0,57276.0,0.00307568]
[1720772670722,0.25820096,57277.0,57272.0,0.19449187]
[1720772670952,0.11452096,57276.0,57275.0,0.20561435]
[1720772671326,0.11452096,57276.0,57275.0,0.26981435]
[1720772671529,0.11452096,57276.0,57275.0,0.42758342]
[1720772671935,0.12854005,57276.0,57272.0,0.19449187]
[1720772672319,0.1,57275.0,57274.0,0.08511435]
[1720772672520,0.01452145,57275.0,57274.0,0.08511435]
[1720772672897,0.01452147,57275.0,57274.0,0.08511435]
[1720772674062,0.01452147,57275.0,57274.0,0.08711435]
[1720772675348,0.01452081,57275.0,57274.0,0.08711435]
[1720772675754,0.01452109,57275.0,57274.0,0.08711435]
[1720772678948,0.12573209,57275.0,57274.0,0.08711435]
[1720772679130,0.47798921,57275.0,57274.0,0.08711435]
[1720772679331,0.51798921,57275.0,57274.0,0.08711435]
[1720772679875,0.36908921,57275.0,57274.0,0.08711435]
[1720772680081,0.11452121,57275.0,57274.0,0.08711435]
[1720772680278,0.01452121,57275.0,57274.0,0.08711435]
[1720772682007,0.36691421,57275.0,57274.0,0.08711435]
[1720772682231,0.44370563,57275.0,57274.0,0.08711435]
[1720772682388,0.48441263,57275.0,57274.0,0.08711435]
[1720772682592,0.4844125,57275.0,57274.0,0.08711435]
[1720772683120,0.48441264,57275.0,57274.0,0.002]
[1720772683497,0.46989142,57275.0,57274.0,0.002]
[1720772683867,0.45684742,57275.0,57274.0,0.002]
[1720772684063,0.420056,57275.0,57274.0,0.002]
[1720772684268,0.420056,57275.0,57272.0,0.06490001]
[1720772684531,0.471652,57274.0,57272.0,0.06490001]
[1720772684705,0.371652,57273.0,57272.0,1e-08]
[1720772684907,0.371652,57273.0,57268.0,0.24288342]
[1720772684908,0.001,57271.0,57268.0,0.07399186]
[1720772685079,0.001,57271.0,57266.0,0.074713]
[1720772685080,0.001,57271.0,57266.0,0.011913]
[1720772685505,0.001,57269.0,57266.0,0.011913]
[1720772685779,0.001,57271.0,57268.0,0.07399186]
[1720772685989,0.576402,57271.0,57268.0,0.07399186]
[1720772686184,0.576402,57271.0,57266.0,0.011913]
[1720772686185,0.1,57270.0,57266.0,0.011913]
[1720772686424,0.0573,57269.0,57266.0,0.011913]
[1720772686625,0.0573,57269.0,57263.0,0.0015]
[1720772686626,0.001,57264.0,57263.0,0.0015]
[1720772686824,0.02972,57264.0,57263.0,0.0015]
[1720772687434,0.001,57263.0,57262.0,0.009097]
[1720772687563,0.669086,57263.0,57262.0,0.009097]
[1720772687765,0.769086,57263.0,57262.0,0.009097]
[1720772688815,0.768086,57263.0,57262.0,0.009097]
[1720772689031,0.637693,57263.0,57262.0,0.009097]
[1720772689169,0.504935,57263.0,57262.0,0.009097]
[1720772689371,0.53700124,57263.0,57262.0,0.009097]
[1720772689572,0.55152605,57263.0,57262.0,0.009097]
[1720772689776,0.55452605,57263.0,57262.0,1e-08]
[1720772690119,0.15059105,57263.0,57261.0,0.08511435]
[1720772690321,0.01452481,57262.0,57261.0,0.08511435]
[1720772690767,0.01552481,57262.0,57261.0,0.08511435]